Workbook

Sheet 3. CAPEX (2)
B2: 1- USINA SOLAR FOTOVOLTAICA | D2: 1º ANO (R$) | E2: 2º CAPEX - ANO 13 (R$) | F2: CAPEX TOTAL (R$)
B3: 1.1 | C3: PAINEIS | D3: 10133178.23 | E3: 583083.4286 | F3: =D3+E3 -> 10716261.65
B4: 1.2 | C4: INVERSORES | D4: 1734098.587 | E4: 99783.51579 | F4: 1833882.103
B5: 1.3 | C5: SUPORTES RACK | D5: 3892397.658 | E5: 223976.3795 | F5: 4116374.038
B6: 1.4 | C6: STRINGS/CABOS ECONECTORES | D6: 997600.56 | E6: 57403.94 | F6: 1055004.5
B7: 1.5 | C7: SKID STATION | D7: 3794812.752 | E7: 218361.148 | F7: 4013173.9
B8: 1.6 | C8: MÃO DE OBRA p/. MONTAGEM DA UFV | D8: 6050661.67 | E8: 348167.2258 | F8: 6398828.896
B9: 1.7 | C9: OBRAS CIVIS | D9: 1880708.543 | E9: 108219.7472 | F9: 1988928.29
B11: SUBTOTAL UFV (R$) | D11: =SUM(D3:D9) -> 28483458 | E11: 1638995.385 | F11: 30122453.38
B14: 2 - DEMAIS COMPONENTES | D14: 1º CAPEX (R$) | E14: 2º CAPEX - ANO 13 (R$) | F14: CAPEX TOTAL (R$)
B15: 2.1 | C15: ELABORAÇÃO DE PROJETO EXECUTIVO | D15: 481120.5084 | E15: 27684.64043 | F15: =D15+E15 -> 508805.1489
B16: 2.2 | C16: AQUISIÇÃO DO TERRENO | D16: 391127.1051 | E16: 22506.23924 | F16: 413633.3443
B17: 2.3 | C17: REDE DE MÉDIA TENSÃO | D17: 1535400 | E17: 88350 | F17: 1623750
B18: 2.4 | C18: CABINE DE MÉDIA TENSÃO | D18: 3039907.752 | E18: 174922.398 | F18: 3214830.15
B19: 2.5 | C19: CUSTO COM CONEXÃO | D19: 818880 | E19: 47120 | F19: 866000
B20: 2.6 | C20: ESTAÇÃO SOLARIMÉTRICA | D20: 982553.64 | E20: 56538.11 | F20: 1039091.75
B21: 2.7 | C21: LICENÇAS E SEGUROS | D21: 157457.6209 | E21: 9060.427778 | F21: 166518.0487
B23: SUBTOTAL (R$) | D23: =SUM(D15:D21) -> 7406446.626 | E23: 426181.8155 | F23: 7832628.442
B25: TOTAL GERAL (R$) | D25: =D11+D23 -> 35889904.62 | E25: 2065177.2 | F25: 37955081.82

Sheet CAPA
G2: SECRETARIA DE ESTADO DA INFRAESTRUTURA E DOS RECURSOS HÍDRICOS
B9: MODELO DE VIABILIDADE ECONÔMICO-FINANCEIRA
B11: GRUPO 2
B16: PARCERIA PÚBLICA-PRIVADA (PPP) NA MODALIDADE DE CONCESSÃO ADMINISTRATIVA PARA CONSTRUÇÃO, OPERAÇÃO E MANUTENÇÃO DE MINIUSINAS FOTOVOLTAICAS (MINIUFVS) PARA O GOVERNO DO ESTADO DA PARAÍBA
F28: João Pessoa, dezembro/2023

Sheet ÍNDICE
B2: ORDEM | C2: DESIGNAÇÃO
B3: 1 | C3: MANUAL
B4: 2 | C4: SIMULADOR
B5: 2.1 | C5: RESUMO
B6: 3 | C6: CAPEX
B7: 4 | C7: OPEX
B8: 5 | C8: CPMC (WACC)
B9: 6 | C9: Contraprestação
B10: 7 | C10: Variáveis de Financiamento
B11: 8 | C11: Simulação de Financiamento
B12: 9 | C12: FLUXO DE CAIXA
B13: 10 | C13: DRE
B16: SIGLA | C16: SIGNIFICADO
B17: CAPEX | C17: Capital Expenditure
B18: OPEX | C18: Operational Expenditure
B19: CMPC | C19: Custo Médio Ponderado de Capital (WACC)
B20: DRE | C20: Demonstração de Resultado de Exercício

Sheet 1. MANUAL
G2: SECRETARIA DE ESTADO DA INFRAESTRUTURA E DOS RECURSOS HÍDRICOS
B44: - É possível alterar os valores de dados de entrada - CAPEX, OPEX, ALAVANCAGEM e PARÂMETROS DE MERCADO FINANCEIRO, que automaticamente os demais resultados são calculados.
B45: - A aba ‘SIMULADOR’ permite avaliar o resultado financeiro do projeto, e os índices de viabilidade econômica, alterando-se os parâmetros ALAVANCAGEM. Para a situação em que haja ALAVANCAGEM nula, pode-se modificar a TMA (arbitrária).
B46: - As demais abas compreendem as funcionalidades descritas abaixo:
B47: ÍNDICE: Exibe a relação das abas contendo as planilhas
B48: SIMULADOR: Realiza simulações a partir de alteração de valores de dados de entrada
B49: RESUMO: Sintetiza os diversos indicadores, valores, parâmetros utilizados, e resultados obtidos na análise de viabilidade econômico-financeira
B50: CAPEX: | C50: Apresenta os Custos de Investimentos
B51: OPEX: | C51: Apresenta os Custos de Operação
B52: CPMC (WACC): | C52: Cálculo do valor de capital próprio e do capital médio ponderado
B53: CONTRAPRESTAÇÃO: Calcula o valor da Contraprestação
B54: VARIÁVEIS DE FINANCIAMENTO: Permite a entrada de dados para o cálculo das parcelas do financiamento
B55: SIMULAÇÃO DE FINANCIAMENTO: Calcula as parcelas do financiamento, juros e amortização, para a linha BNDES Finame Baixo Carbono.
B56: FLUXO DE CAIXA: Exibe o fluxo de caixa do projeto
B57: DRE: Apresenta a Demonstração do Resultado do Exercício

Sheet 2. SIMULADOR
B3: PREMISSAS | C3: GRUPO II | F3: INDICADORES | G3: GRUPO II
B4: CAPEX total | C4: =C5+C6 -> 37955081.82 | F4: Receita Bruta total | G4: =SUM('9. FLUXO DE CAIXA '!D5:AA5) -> 121172740.2
B5: 1º CAPEX (R$) | C5: ='3. CAPEX '!D25 -> 35889904.62 | F5: Contraprestação Mensal | G5: =G6/12 -> 420738.6814
B6: 2º CAPEX (R$) | C6: ='3. CAPEX '!E25 -> 2065177.2 | F6: Contraprestação Anual | G6: ='9. FLUXO DE CAIXA '!D5 -> 5048864.176
B7: OPEX total | C7: =24*C8 -> 14938508.95 | F7: Tributos totais | G7: =-1*(SUM('9. FLUXO DE CAIXA '!D8:AA8)+SUM('9. FLUXO DE CAIXA '!D9:AA9)+SUM('9. FLUXO DE CAIXA '!D10:AA10)+SUM('9. FLUXO DE CAIXA '!D14:AA14)+SUM('9. FLUXO DE CAIXA '!D15:AA15)+SUM('9. FLUXO DE CAIXA '!D16:AA16)) -> 20665581.36
B8: OPEX (anual) (R$) | C8: ='4. OPEX'!D10 -> 622437.873 | F8: TIR acionista | G8: ='9. FLUXO DE CAIXA '!C38 -> 0.1021793667
B9: TMA (CMPC) | C9: ='5. CMPC (WACC)'!G5 -> 0.0822892297 | F9: VPL acionista | G9: ='9. FLUXO DE CAIXA '!C39 -> 2770499.169
B10: TMA(arbitrária)1 | C10: 0.076 | F10: Payback acionista | G10: ='9. FLUXO DE CAIXA '!C40 -> 14.1944576
B11: Alavancagem | C11: 0.7 | F11: TIR do Projeto | G11: ='9. FLUXO DE CAIXA '!C28 -> 0.08277812225
B12: Impostos (Lucro Presumido) | C12: 0.1733 | F12: VPL do Projeto | G12: ='9. FLUXO DE CAIXA '!C29 -> 143621.7269
B13: Regime Contábil | C13: ='2.1. RESUMO'!C11 -> Lucro Presumido | F13: Payback do projeto | G13: ='9. FLUXO DE CAIXA '!C31 -> 10.06627675
B14: Prazo da Concessão (em anos) | C14: ='2.1. RESUMO'!C12 -> 25
B15: 1- Para o caso de alavancagem nula
F16: DADOS DE FINANCIAMENTO | G16: GRUPO II
F17: Valor captado | G17: ='7. VARIÁVEIS DE FINANCIAMENTO'!D22 -> 26568557.28
F18: Custo financeiro da Dívida | G18: ='7. VARIÁVEIS DE FINANCIAMENTO'!C18 -> 0.0635
F19: ICSD médio | G19: ='9. FLUXO DE CAIXA '!C41 -> 1.190781038

Sheet 2.1. RESUMO
B3: RESUMO | C3: GRUPO II
B4: Receita Bruta total | C4: =SUM('9. FLUXO DE CAIXA '!D5:AA5) -> 121172740.2
B5: CAPEX total | C5: ='3. CAPEX '!F25 -> 37955081.82
B6: OPEX total | C6: =SUM('4. OPEX'!D10:AA10) -> 14938508.95
B7: Tributos totais | C7: =-1*(SUM('9. FLUXO DE CAIXA '!D8:AA8)+SUM('9. FLUXO DE CAIXA '!D9:AA9)+SUM('9. FLUXO DE CAIXA '!D10:AA10)+SUM('9. FLUXO DE CAIXA '!D14:AA14)+SUM('9. FLUXO DE CAIXA '!D15:AA15)+SUM('9. FLUXO DE CAIXA '!D16:AA16)) -> 20665581.36
B8: Contraprestação Mensal | C8: ='9. FLUXO DE CAIXA '!D5/12 -> 420738.6814
B9: Contraprestação Anual | C9: ='9. FLUXO DE CAIXA '!D5 -> 5048864.176
B10: TMA (CMPC) | C10: ='5. CMPC (WACC)'!G5 -> 0.0822892297
B11: Regime Contábil | C11: Lucro Presumido
B12: Prazo da Concessão | C12: 25
B14: INDICADORES | C14: GRUPO II
B15: TIR acionista | C15: ='9. FLUXO DE CAIXA '!C38 -> 0.1021793667
B16: VPL acionista | C16: ='9. FLUXO DE CAIXA '!C39 -> 2770499.169
B17: Payback acionista | C17: ='9. FLUXO DE CAIXA '!C40 -> 14.1944576
B18: TIR do Projeto | C18: ='9. FLUXO DE CAIXA '!C28 -> 0.08277812225
B19: VPL do Projeto | C19: ='9. FLUXO DE CAIXA '!C29 -> 143621.7269
B20: Payback do projeto | C20: ='9. FLUXO DE CAIXA '!C31 -> 10.06627675
B22: PREMISSAS DE FINANCIAMENTO | C22: GRUPO II
B23: Alavancagem | C23: ='5. CMPC (WACC)'!G10 -> 0.7
B24: Valor captado | C24: ='7. VARIÁVEIS DE FINANCIAMENTO'!D22 -> 26568557.28
B25: Custo financeiro da Dívida | C25: ='7. VARIÁVEIS DE FINANCIAMENTO'!C18 -> 0.0635
B26: ICSD médio | C26: ='9. FLUXO DE CAIXA '!C41 -> 1.190781038

Sheet 3. CAPEX
B2: 1- USINA SOLAR FOTOVOLTAICA | D2: 1º ANO (R$) | E2: 2º CAPEX - ANO 13 (R$) | F2: CAPEX TOTAL (R$)
B3: 1.1 | C3: PAINEIS | D3: 10133178.23 | E3: 583083.4286 | F3: =D3+E3 -> 10716261.65
B4: 1.2 | C4: INVERSORES | D4: 1734098.587 | E4: 99783.51579 | F4: 1833882.103
B5: 1.3 | C5: SUPORTES RACK | D5: 3892397.658 | E5: 223976.3795 | F5: 4116374.038
B6: 1.4 | C6: STRINGS/CABOS ECONECTORES | D6: 997600.56 | E6: 57403.94 | F6: 1055004.5
B7: 1.5 | C7: SKID STATION | D7: 3794812.752 | E7: 218361.148 | F7: 4013173.9
B8: 1.6 | C8: MÃO DE OBRA p/. MONTAGEM DA UFV | D8: 6050661.67 | E8: 348167.2258 | F8: 6398828.896
B9: 1.7 | C9: OBRAS CIVIS | D9: 1880708.543 | E9: 108219.7472 | F9: 1988928.29
B11: SUBTOTAL UFV (R$) | D11: =SUM(D3:D9) -> 28483458 | E11: 1638995.385 | F11: 30122453.38
B14: 2 - DEMAIS COMPONENTES | D14: 1º CAPEX (R$) | E14: 2º CAPEX - ANO 13 (R$) | F14: CAPEX TOTAL (R$)
B15: 2.1 | C15: ELABORAÇÃO DE PROJETO EXECUTIVO | D15: 481120.5084 | E15: 27684.64043 | F15: =D15+E15 -> 508805.1489
B16: 2.2 | C16: AQUISIÇÃO DO TERRENO | D16: 391127.1051 | E16: 22506.23924 | F16: 413633.3443
B17: 2.3 | C17: REDE DE MÉDIA TENSÃO | D17: 1535400 | E17: 88350 | F17: 1623750
B18: 2.4 | C18: CABINE DE MÉDIA TENSÃO | D18: 3039907.752 | E18: 174922.398 | F18: 3214830.15
B19: 2.5 | C19: CUSTO COM CONEXÃO | D19: 818880 | E19: 47120 | F19: 866000
B20: 2.6 | C20: ESTAÇÃO SOLARIMÉTRICA | D20: 982553.64 | E20: 56538.11 | F20: 1039091.75
B21: 2.7 | C21: LICENÇAS E SEGUROS | D21: 157457.6209 | E21: 9060.427778 | F21: 166518.0487
B23: SUBTOTAL (R$) | D23: =SUM(D15:D21) -> 7406446.626 | E23: 426181.8155 | F23: 7832628.442
B25: TOTAL GERAL (R$) | D25: =D11+D23 -> 35889904.62 | E25: 2065177.2 | F25: 37955081.82

Sheet 4. OPEX
B2: OPEX GRUPO 1 | D2: ANO 2 | E2: ANO 3 | F2: ANO 4 | G2: ANO 5 | H2: ANO 6 | I2: ANO 7 | J2: ANO 8 | K2: ANO 9 | L2: ANO 10 | M2: ANO 11 | N2: ANO 12 | O2: ANO 13 | P2: ANO 14 | Q2: ANO 15 | R2: ANO 16 | S2: ANO 17 | T2: ANO 18 | U2: ANO 19 | V2: ANO 20 | W2: ANO 21 | X2: ANO 22 | Y2: ANO 23 | Z2: ANO 24 | AA2: ANO 25 | AB2: OPEX TOTAL
B4: 1 | C4: Gerência e diretoria (R$) | D4: 153847.92 | E4: =D4 -> 153847.92 | F4: 153847.92 | G4: 153847.92 | H4: 153847.92 | I4: 153847.92 | J4: 153847.92 | K4: 153847.92 | L4: 153847.92 | M4: 153847.92 | N4: 153847.92 | O4: 153847.92 | P4: 153847.92 | Q4: 153847.92 | R4: 153847.92 | S4: 153847.92 | T4: 153847.92 | U4: 153847.92 | V4: 153847.92 | W4: 153847.92 | X4: 153847.92 | Y4: 153847.92 | Z4: 153847.92 | AA4: 153847.92 | AB4: =SUM(D4:AA4) -> 3692350.08
B5: 2 | C5: Operação e manutenção (R$) | D5: 382493.5057 | E5: =D5 -> 382493.5057 | F5: 382493.5057 | G5: 382493.5057 | H5: 382493.5057 | I5: 382493.5057 | J5: 382493.5057 | K5: 382493.5057 | L5: 382493.5057 | M5: 382493.5057 | N5: 382493.5057 | O5: 382493.5057 | P5: 382493.5057 | Q5: 382493.5057 | R5: 382493.5057 | S5: 382493.5057 | T5: 382493.5057 | U5: 382493.5057 | V5: 382493.5057 | W5: 382493.5057 | X5: 382493.5057 | Y5: 382493.5057 | Z5: 382493.5057 | AA5: 382493.5057 | AB5: 9179844.136
B6: 3 | C6: Despesa sócio-ambientais (R$) | D6: 1335.833333 | E6: =D6 -> 1335.833333 | F6: 1335.833333 | G6: 1335.833333 | H6: 1335.833333 | I6: 1335.833333 | J6: 1335.833333 | K6: 1335.833333 | L6: 1335.833333 | M6: 1335.833333 | N6: 1335.833333 | O6: 1335.833333 | P6: 1335.833333 | Q6: 1335.833333 | R6: 1335.833333 | S6: 1335.833333 | T6: 1335.833333 | U6: 1335.833333 | V6: 1335.833333 | W6: 1335.833333 | X6: 1335.833333 | Y6: 1335.833333 | Z6: 1335.833333 | AA6: 1335.833333 | AB6: 32060
B7: 4 | C7: Seguros e garantias (R$) | D7: 30760.61395 | E7: =D7 -> 30760.61395 | F7: 30760.61395 | G7: 30760.61395 | H7: 30760.61395 | I7: 30760.61395 | J7: 30760.61395 | K7: 30760.61395 | L7: 30760.61395 | M7: 30760.61395 | N7: 30760.61395 | O7: 30760.61395 | P7: 30760.61395 | Q7: 30760.61395 | R7: 30760.61395 | S7: 30760.61395 | T7: 30760.61395 | U7: 30760.61395 | V7: 30760.61395 | W7: 30760.61395 | X7: 30760.61395 | Y7: 30760.61395 | Z7: 30760.61395 | AA7: 30760.61395 | AB7: 738254.7348
B8: 5 | C8: Segurança patrimonial (R$) | D8: 54000 | E8: =D8 -> 54000 | F8: 54000 | G8: 54000 | H8: 54000 | I8: 54000 | J8: 54000 | K8: 54000 | L8: 54000 | M8: 54000 | N8: 54000 | O8: 54000 | P8: 54000 | Q8: 54000 | R8: 54000 | S8: 54000 | T8: 54000 | U8: 54000 | V8: 54000 | W8: 54000 | X8: 54000 | Y8: 54000 | Z8: 54000 | AA8: 54000 | AB8: 1296000
B10: TOTAL (R$) | D10: =SUM(D4:D9) -> 622437.873 | E10: =SUM(E4:E8) -> 622437.873 | F10: 622437.873 | G10: 622437.873 | H10: 622437.873 | I10: 622437.873 | J10: 622437.873 | K10: 622437.873 | L10: 622437.873 | M10: 622437.873 | N10: 622437.873 | O10: 622437.873 | P10: 622437.873 | Q10: 622437.873 | R10: 622437.873 | S10: 622437.873 | T10: 622437.873 | U10: 622437.873 | V10: 622437.873 | W10: 622437.873 | X10: 622437.873 | Y10: 622437.873 | Z10: 622437.873 | AA10: 622437.873 | AB10: 14938508.95

Sheet 5. CMPC (WACC)
C2: Custo Médio Ponderado de Capital - CMPC (WACC)
C4: Cálculo de CMPC (WACC)
C5: CMPC= Ke x E/V + Kd x (1 – T) x D/V | G5: =G6*G7+G8*(1-G9)*G10 -> 0.0822892297
C6: Ke = Custo do Capital Próprio Real alavancado | F6: Kerl | G6: =G17 -> 0.148914599
C7: E/V = % Participação do Capital Próprio | F7: E/V | G7: =1-G27 -> 0.3 | I7: Referência | J7: Fonte
C8: Kd = Custo do Capital de Terceiros Real | F8: Kd | G8: 0.065 | I8: Boletim Informativo de Debêntures Incentivadas | J8: https://www.gov.br/economia/pt-br/centrais-de-conteudo/publicacoes/boletins/boletim-de-debentures-incentivadas/2022/boletim-de-debentures-incentivadas-dezembro-2022
C9: T = Taxa de Imposto sobre Sociedades | F9: T | G9: 0.1733 | I9: Alíquota lucro real | J9: http://www.cebrasse.org.br/downloads/html/lucro_presumido_real.html
C10: D/V = % Participação do Capital de Terceiros | F10: D/V | G10: ='2. SIMULADOR'!C11 -> 0.7
C12: Cálculo de Custo de Capital Próprio (Capital Asset Price Model - CAPM)
C13: CAPM: Ke = Rf + beta*PRM + Rp
C14: Custo de Capital Próprio Nominal (Rf+βd*PRM+Rp) | F14: Ke | G14: =(G22+(G26*(G24-G23)))+G31 -> 0.10761
C15: Custo de Capital Próprio Real {[(1+Ke)/(1+IPCA)]-1} | F15: Ker | G15: =((1+G14)/(1+G30))-1 -> 0.03611786717
C16: Custo de Capital Próprio Nominal Alavancado [Rf+βl(Rm-R'f)+Rp] | F16: Kel | G16: =(G22+(G28*(G24-G23)))+G31 -> 0.2281897063
C17: Custo de Capital Próprio Real Alavancado {[(1+Kerl)/(1+IPCA)]-1} | F17: Kerl | G17: =((1+G16)/(1+G30))-1 -> 0.148914599
I20: Referência | J20: Fonte
C21: Parâmetros
C22: Taxa nominal livre de risco (US T-Bond) | F22: Rf | G22: 0.0242 | I22: Taxa de retorno do Treasury Bond 10Y Média anual do período 2008-2022 | J22: macrotrends.net
C23: Taxa nominal livre de risco (US T-Bond) | F23: R’f | G23: 0.0373 | I23: Taxa de retorno do Treasury Bond 10Y Média móvel de 12 meses do final do período 1960-2022 | J23: macrotends.net
C24: Retorno da carteira de mercado – S&P500 | F24: Rm | G24: 0.1266 | I24: Mediana do período 1970-2023 – S&P Dow Jones | J24: macrotrends.net
C25: Prêmio de risco do mercado | F25: PRM | G25: =G24-G23 -> 0.0893 | I25: Rm-R’f
C26: Beta médio desalavancado | F26: βd | G26: 0.7 | I26: Green & Renewable Energy - unlevered beta (05/01/2023) | J26: https://pages.stern.nyu.edu/~adamodar/
C27: Alavancagem | F27: D/V | G27: =G10 -> 0.7
C28: Beta alavancado | F28: βl | G28: =G26*(1+(1-G29)*(G10/G7)) -> 2.050276667
C29: Impostos | F29: T | G29: 0.1733 | I29: Alíquota lucro real | J29: http://www.cebrasse.org.br/downloads/html/lucro_presumido_real.html
C30: Inflação Brasil IPCA | F30: IPCA | G30: 0.069 | I30: IPCA média aritmética da variação percentual acumulada no ano – 2000-2022 | J30: https://www.ibge.gov.br/estatisticas/economicas/precos-e-custos/9256-indice-nacional-de-precos-ao-consumidor-amplo.html?=&t=downloads
C31: Prêmio de risco-país | F31: Rp | G31: 0.0209 | I31: EMBI+_Risco Brasil do dia 8/9/2023 | J31: http://www.ipeadata.gov.br/ExibeSerie.aspx?serid=40940&module=M
G54: 7

Sheet 6. CONTRAPRESTAÇÃO
B2: Cálculo da Contraprestação | Grupo 2
B4: Premissas Econômicas
B5: TMA (CMPC) | D5: =IF('2. SIMULADOR'!C11=0,'2. SIMULADOR'!C10,'2. SIMULADOR'!C9) -> 0.0822892297
B6: Prazo de Concessão (anos) | D6: ='2. SIMULADOR'!C14 -> 25
B7: Regime Contábil | D7: Lucro Presumido
B8: Impostos (Lucro Presumido) | D8: ='2. SIMULADOR'!C12 -> 0.1733
B10: CUSTOS DE INVESTIMENTO
B11: 1º CAPEX (R$) | D11: ='3. CAPEX '!D25 -> 35889904.62
B12: 2º CAPEX (R$) | C12: ='3. CAPEX '!E25 -> 2065177.2
B13: 2º CAPEX Descontado (R$) | D13: =C12/(1+D5)^12 -> 799534.636
B14: CAPEX Total (R$) | D14: =SUM(D11:D13) -> 36689439.26
B16: Custo anualizado
B17: CAPEX anualizado (CAE) (R$) | D17: =D14*((D5*(1+D5)^24)/((1+D5)^24-1)) -> 3551458.142
B18: OPEX (anual) (R$) | D18: ='4. OPEX'!D10 -> 622437.873
B19: Total (R$) | D19: =D17+D18 -> 4173896.015
B21: Contraprestação anual
B22: CUSTO ANUALIZADO (R$) | D22: =D19 -> 4173896.015
B23: Impostos (R$) | D23: =(D19/(1-D8))-D22 -> 874968.1618
B24: VALOR DA CONTRAPRESTAÇÃO (R$) | D24: =SUM(D22:D23) -> 5048864.176

Sheet 7. VARIÁVEIS DE FINANCIAMENTO
B2: VARIÁVEIS DE FINANCIAMENTO
B4: LINHA DE FINANCIAMENTO | E4: BNDES FINAME Baixo Carbono | I4: ITENS FINANCIÁVEIS | J4: VALOR (R$)
H5: 1- USINA SOLAR FOTOVOLTAICA
B6: Taxa de juros | E6: (IPCA + parcela fixa TLP) + remuneração BNDES | H6: 1.1 | I6: PAINEIS | J6: ='3. CAPEX '!F3 -> 10716261.65
B7: Sistema de amortização | E7: SAC | H7: 1.2 | I7: INVERSORES | J7: ='3. CAPEX '!F4 -> 1833882.103
B8: Remuneração BNDES | E8: 0,95% a.a. | H8: 1.3 | I8: SUPORTES RACK | J8: ='3. CAPEX '!F5 -> 4116374.038
B9: Mês de Referência | E9: 2023-10-01 | H9: 1.4 | I9: STRINGS/CABOS ECONECTORES | J9: ='3. CAPEX '!F6 -> 1055004.5
B10: Participação do BNDES | E10: 100% dos itens financiáveis | H10: 1.5 | I10: SKID STATION | J10: ='3. CAPEX '!F7 -> 4013173.9
B11: PRAZO | E11: Até 10 anos, com carência de até 2 anos. | H11: 2 - DEMAIS COMPONENTES
H12: 2.1 | I12: ELABORAÇÃO DE PROJETO EXECUTIVO | J12: ='3. CAPEX '!F15 -> 508805.1489
B13: CÁLCULO DA TAXA DE JUROS | H13: 2.3 | I13: REDE DE MÉDIA TENSÃO | J13: ='3. CAPEX '!F17 -> 1623750
B14: AGENTE FINANCEIRO | C14: 0 | H14: 2.4 | I14: CABINE DE MÉDIA TENSÃO | J14: ='3. CAPEX '!F18 -> 3214830.15
B15: IPCA | C15: 0.0026 | H15: 2.5 | I15: CUSTO COM CONEXÃO | J15: ='3. CAPEX '!F19 -> 866000
B16: TLP fixa | C16: 0.0514 | H16: 2.6 | I16: ESTAÇÃO SOLARIMÉTRICA | J16: ='3. CAPEX '!F20 -> 1039091.75
B17: BNDES | C17: 0.0095
B18: Taxa final de juros | C18: =SUM(C14:C17) -> 0.0635 | H18: 3 - TOTAL | J18: =SUM(J6:J16) -> 28987173.24
B21: CAPEX | C21: ALAVANCAGEM | D21: EMPRÉSTIMO (R$) | E21: ITENS FINANCIÁVEIS (R$) | F21: % DOS ITENS FINANCIÁVEIS
B22: ='3. CAPEX '!F25 -> 37955081.82 | C22: ='2. SIMULADOR'!C11 -> 0.7 | D22: =B22*C22 -> 26568557.28 | E22: =J18 -> 28987173.24 | F22: =D22/E22 -> 0.9165625448

Sheet 8. SIMULAÇÃO DE FINANCIAMENTO
B2: SIMULAÇÃO DE FINANCIAMENTO
B4: TAXA | C4: ='7. VARIÁVEIS DE FINANCIAMENTO'!C18 -> 0.0635 | D4: EMPRÉSTIMO | E4: ='7. VARIÁVEIS DE FINANCIAMENTO'!D22 -> 26568557.28
B6: ANO | C6: 1 | D6: 2 | E6: 3 | F6: 4 | G6: 5 | H6: 6 | I6: 7 | J6: 8 | K6: 9 | L6: 10 | M6: 11 | N6: 12 | O6: 13
B7: Saldo Devedor (R$) | C7: ='7. VARIÁVEIS DE FINANCIAMENTO'!D22 -> 26568557.28 | D7: =C7 -> 26568557.28 | E7: 26568557.28 | F7: =E7-E8 -> 23911701.55 | G7: 21254845.82 | H7: 18597990.09 | I7: 15941134.37 | J7: 13284278.64 | K7: 10627422.91 | L7: 7970567.183 | M7: 5313711.455 | N7: 2656855.728 | O7: -3.725290298e-09
B8: Amortização (R$) | E8: =C7/10 -> 2656855.728 | F8: =E8 -> 2656855.728 | G8: 2656855.728 | H8: 2656855.728 | I8: 2656855.728 | J8: 2656855.728 | K8: 2656855.728 | L8: 2656855.728 | M8: 2656855.728 | N8: 2656855.728
B9: Juros (R$) | C9: =$C$4*C7 -> 1687103.387 | D9: 1687103.387 | E9: 1687103.387 | F9: 1518393.048 | G9: 1349682.71 | H9: 1180972.371 | I9: 1012262.032 | J9: 843551.6935 | K9: 674841.3548 | L9: 506131.0161 | M9: 337420.6774 | N9: 168710.3387
B10: Prestação (R$) | C10: =SUM(C8:C9) -> 1687103.387 | D10: 1687103.387 | E10: 4343959.115 | F10: 4175248.776 | G10: 4006538.437 | H10: 3837828.098 | I10: 3669117.76 | J10: 3500407.421 | K10: 3331697.082 | L10: 3162986.744 | M10: 2994276.405 | N10: 2825566.066

Sheet 9. FLUXO DE CAIXA
B2: Fluxo de caixa LP (70/30) | C2: ANO 1 | D2: ANO 2 | E2: ANO 3 | F2: ANO 4 | G2: ANO 5 | H2: ANO 6 | I2: ANO 7 | J2: ANO 8 | K2: ANO 9 | L2: ANO 10 | M2: ANO 11 | N2: ANO 12 | O2: ANO 13 | P2: ANO 14 | Q2: ANO 15 | R2: ANO 16 | S2: ANO 17 | T2: ANO 18 | U2: ANO 19 | V2: ANO 20 | W2: ANO 21 | X2: ANO 22 | Y2: ANO 23 | Z2: ANO 24 | AA2: ANO 25
B4: Receita Operacional Bruta (ROB) | D4: =D5 -> 5048864.176 | E4: 5048864.176 | F4: 5048864.176 | G4: 5048864.176 | H4: 5048864.176 | I4: 5048864.176 | J4: 5048864.176 | K4: 5048864.176 | L4: 5048864.176 | M4: 5048864.176 | N4: 5048864.176 | O4: 5048864.176 | P4: 5048864.176 | Q4: 5048864.176 | R4: 5048864.176 | S4: 5048864.176 | T4: 5048864.176 | U4: 5048864.176 | V4: 5048864.176 | W4: 5048864.176 | X4: 5048864.176 | Y4: 5048864.176 | Z4: 5048864.176 | AA4: 5048864.176
B5: Contraprestação do poder concedente | D5: ='6. CONTRAPRESTAÇÃO'!D24 -> 5048864.176 | E5: =D5 -> 5048864.176 | F5: 5048864.176 | G5: 5048864.176 | H5: 5048864.176 | I5: 5048864.176 | J5: 5048864.176 | K5: 5048864.176 | L5: 5048864.176 | M5: 5048864.176 | N5: 5048864.176 | O5: 5048864.176 | P5: 5048864.176 | Q5: 5048864.176 | R5: 5048864.176 | S5: 5048864.176 | T5: 5048864.176 | U5: 5048864.176 | V5: 5048864.176 | W5: 5048864.176 | X5: 5048864.176 | Y5: 5048864.176 | Z5: 5048864.176 | AA5: 5048864.176
B7: Impostos
B8: PIS (0,65%) | D8: =D5*0.0065*-1 -> -32817.61715 | E8: =-(E5*0.0065) -> -32817.61715 | F8: -32817.61715 | G8: -32817.61715 | H8: -32817.61715 | I8: -32817.61715 | J8: -32817.61715 | K8: -32817.61715 | L8: -32817.61715 | M8: -32817.61715 | N8: -32817.61715 | O8: -32817.61715 | P8: -32817.61715 | Q8: -32817.61715 | R8: -32817.61715 | S8: -32817.61715 | T8: -32817.61715 | U8: -32817.61715 | V8: -32817.61715 | W8: -32817.61715 | X8: -32817.61715 | Y8: -32817.61715 | Z8: -32817.61715 | AA8: -32817.61715
B9: COFINS (3,00%) | D9: =-(D5*0.03) -> -151465.9253 | E9: -151465.9253 | F9: -151465.9253 | G9: -151465.9253 | H9: -151465.9253 | I9: -151465.9253 | J9: -151465.9253 | K9: -151465.9253 | L9: -151465.9253 | M9: -151465.9253 | N9: -151465.9253 | O9: -151465.9253 | P9: -151465.9253 | Q9: -151465.9253 | R9: -151465.9253 | S9: -151465.9253 | T9: -151465.9253 | U9: -151465.9253 | V9: -151465.9253 | W9: -151465.9253 | X9: -151465.9253 | Y9: -151465.9253 | Z9: -151465.9253 | AA9: -151465.9253
B10: ISS (3,00%) | D10: =0.03*D5*-1 -> -151465.9253 | E10: =D10 -> -151465.9253 | F10: -151465.9253 | G10: -151465.9253 | H10: -151465.9253 | I10: -151465.9253 | J10: -151465.9253 | K10: -151465.9253 | L10: -151465.9253 | M10: -151465.9253 | N10: -151465.9253 | O10: -151465.9253 | P10: -151465.9253 | Q10: -151465.9253 | R10: -151465.9253 | S10: -151465.9253 | T10: -151465.9253 | U10: -151465.9253 | V10: -151465.9253 | W10: -151465.9253 | X10: -151465.9253 | Y10: -151465.9253 | Z10: -151465.9253 | AA10: -151465.9253
B12: Receita Operacional Líquida (ROL) | D12: =D5+D8+D9+D10 -> 4713114.709 | E12: 4713114.709 | F12: 4713114.709 | G12: 4713114.709 | H12: 4713114.709 | I12: 4713114.709 | J12: 4713114.709 | K12: 4713114.709 | L12: 4713114.709 | M12: 4713114.709 | N12: 4713114.709 | O12: 4713114.709 | P12: 4713114.709 | Q12: 4713114.709 | R12: 4713114.709 | S12: 4713114.709 | T12: 4713114.709 | U12: 4713114.709 | V12: 4713114.709 | W12: 4713114.709 | X12: 4713114.709 | Y12: 4713114.709 | Z12: 4713114.709 | AA12: 4713114.709
B13: (-) Custos de operação e manutenção (OPEX) | D13: =-1*'4. OPEX'!D10 -> -622437.873 | E13: =D13 -> -622437.873 | F13: -622437.873 | G13: -622437.873 | H13: -622437.873 | I13: -622437.873 | J13: -622437.873 | K13: -622437.873 | L13: -622437.873 | M13: -622437.873 | N13: -622437.873 | O13: -622437.873 | P13: -622437.873 | Q13: -622437.873 | R13: -622437.873 | S13: -622437.873 | T13: -622437.873 | U13: -622437.873 | V13: -622437.873 | W13: -622437.873 | X13: -622437.873 | Y13: -622437.873 | Z13: -622437.873 | AA13: -622437.873
B14: (-) IRPJ | D14: =-(D4*0.32)*0.15 -> -242345.4805 | E14: -242345.4805 | F14: -242345.4805 | G14: -242345.4805 | H14: -242345.4805 | I14: -242345.4805 | J14: -242345.4805 | K14: -242345.4805 | L14: -242345.4805 | M14: -242345.4805 | N14: -242345.4805 | O14: -242345.4805 | P14: -242345.4805 | Q14: -242345.4805 | R14: -242345.4805 | S14: -242345.4805 | T14: -242345.4805 | U14: -242345.4805 | V14: -242345.4805 | W14: -242345.4805 | X14: -242345.4805 | Y14: -242345.4805 | Z14: -242345.4805 | AA14: -242345.4805
B15: (-) IRPJ do excedente | D15: =-(0.32*D5-240000)*0.1 -> -137563.6536 | E15: -137563.6536 | F15: -137563.6536 | G15: -137563.6536 | H15: -137563.6536 | I15: -137563.6536 | J15: -137563.6536 | K15: -137563.6536 | L15: -137563.6536 | M15: -137563.6536 | N15: -137563.6536 | O15: -137563.6536 | P15: -137563.6536 | Q15: -137563.6536 | R15: -137563.6536 | S15: -137563.6536 | T15: -137563.6536 | U15: -137563.6536 | V15: -137563.6536 | W15: -137563.6536 | X15: -137563.6536 | Y15: -137563.6536 | Z15: -137563.6536 | AA15: -137563.6536
B16: (-) CSLL | D16: =-0.32*D4*0.09 -> -145407.2883 | E16: =-0.32*E5*0.09 -> -145407.2883 | F16: -145407.2883 | G16: -145407.2883 | H16: -145407.2883 | I16: -145407.2883 | J16: -145407.2883 | K16: -145407.2883 | L16: -145407.2883 | M16: -145407.2883 | N16: -145407.2883 | O16: -145407.2883 | P16: -145407.2883 | Q16: -145407.2883 | R16: -145407.2883 | S16: -145407.2883 | T16: -145407.2883 | U16: -145407.2883 | V16: -145407.2883 | W16: -145407.2883 | X16: -145407.2883 | Y16: -145407.2883 | Z16: -145407.2883 | AA16: -145407.2883
B18: LUCRO LIQUIDO APÓS IR | D18: =SUM(D12:D16) -> 3565360.413 | E18: 3565360.413 | F18: 3565360.413 | G18: 3565360.413 | H18: 3565360.413 | I18: 3565360.413 | J18: 3565360.413 | K18: 3565360.413 | L18: 3565360.413 | M18: 3565360.413 | N18: 3565360.413 | O18: 3565360.413 | P18: 3565360.413 | Q18: 3565360.413 | R18: 3565360.413 | S18: 3565360.413 | T18: 3565360.413 | U18: 3565360.413 | V18: 3565360.413 | W18: 3565360.413 | X18: 3565360.413 | Y18: 3565360.413 | Z18: 3565360.413 | AA18: 3565360.413
B19: (-) CAPEX(Investimentos) | C19: =-1*'3. CAPEX '!D25 -> -35889904.62 | O19: =-1*'6. CONTRAPRESTAÇÃO'!C12 -> -2065177.2
B21: Fluxo de caixa do projeto | C21: =C19 -> -35889904.62 | D21: =D18+D19 -> 3565360.413 | E21: 3565360.413 | F21: 3565360.413 | G21: 3565360.413 | H21: 3565360.413 | I21: 3565360.413 | J21: 3565360.413 | K21: 3565360.413 | L21: 3565360.413 | M21: 3565360.413 | N21: 3565360.413 | O21: 1500183.213 | P21: 3565360.413 | Q21: 3565360.413 | R21: 3565360.413 | S21: 3565360.413 | T21: 3565360.413 | U21: 3565360.413 | V21: 3565360.413 | W21: 3565360.413 | X21: 3565360.413 | Y21: 3565360.413 | Z21: 3565360.413 | AA21: 3565360.413
B22: Fluxo de caixa acumulado | C22: =C21 -> -35889904.62 | D22: =C22+D21 -> -32324544.21 | E22: -28759183.8 | F22: -25193823.38 | G22: -21628462.97 | H22: -18063102.56 | I22: -14497742.14 | J22: -10932381.73 | K22: -7367021.316 | L22: -3801660.903 | M22: -236300.4896 | N22: 3329059.924 | O22: 4829243.137 | P22: 8394603.55 | Q22: 11959963.96 | R22: 15525324.38 | S22: 19090684.79 | T22: 22656045.2 | U22: 26221405.62 | V22: 29786766.03 | W22: 33352126.44 | X22: 36917486.86 | Y22: 40482847.27 | Z22: 44048207.68 | AA22: 47613568.1
B23: (+) Captação de empréstimo | C23: ='7. VARIÁVEIS DE FINANCIAMENTO'!D22 -> 26568557.28
B24: (-) Despesas financeiras(juros de empréstimo) | D24: =-1*'8. SIMULAÇÃO DE FINANCIAMENTO'!C9 -> -1687103.387 | E24: =-1*'8. SIMULAÇÃO DE FINANCIAMENTO'!D9 -> -1687103.387 | F24: =-1*'8. SIMULAÇÃO DE FINANCIAMENTO'!E9 -> -1687103.387 | G24: =-1*'8. SIMULAÇÃO DE FINANCIAMENTO'!F9 -> -1518393.048 | H24: =-1*'8. SIMULAÇÃO DE FINANCIAMENTO'!G9 -> -1349682.71 | I24: =-1*'8. SIMULAÇÃO DE FINANCIAMENTO'!H9 -> -1180972.371 | J24: =-1*'8. SIMULAÇÃO DE FINANCIAMENTO'!I9 -> -1012262.032 | K24: =-1*'8. SIMULAÇÃO DE FINANCIAMENTO'!J9 -> -843551.6935 | L24: =-1*'8. SIMULAÇÃO DE FINANCIAMENTO'!K9 -> -674841.3548 | M24: =-1*'8. SIMULAÇÃO DE FINANCIAMENTO'!L9 -> -506131.0161 | N24: =-1*'8. SIMULAÇÃO DE FINANCIAMENTO'!M9 -> -337420.6774 | O24: =-1*'8. SIMULAÇÃO DE FINANCIAMENTO'!N9 -> -168710.3387
B25: (-) Amortização do empréstimo | F25: =C23/10*-1 -> -2656855.728 | G25: =F25 -> -2656855.728 | H25: -2656855.728 | I25: -2656855.728 | J25: -2656855.728 | K25: -2656855.728 | L25: -2656855.728 | M25: -2656855.728 | N25: -2656855.728 | O25: -2656855.728
B27: Indicadores do projeto
B28: TIR do projeto | C28: =IRR(C21:AA21) -> 0.08277812225
B29: VPL do projeto | C29: =NPV(C43,D21:AA21)+C21 -> 143621.7269
B30: Payback simples(contagem) | D30: =IF(D22<0,1,IF(C22>0,0,-C22/D21)) -> 1 | E30: 1 | F30: 1 | G30: 1 | H30: 1 | I30: 1 | J30: 1 | K30: 1 | L30: 1 | M30: 1 | N30: 0.06627674688 | O30: 0 | P30: 0 | Q30: 0 | R30: 0 | S30: 0 | T30: 0 | U30: 0 | V30: 0 | W30: 0 | X30: 0 | Y30: 0 | Z30: 0 | AA30: 0
B31: Payback do projeto | C31: =SUM(D30:AA30) -> 10.06627675
B33: Fluxo de caixa livre do acionista | C33: =C19+C23 -> -9321347.346 | D33: =D21+D24+D25 -> 1878257.026 | E33: 1878257.026 | F33: -778598.7013 | G33: -609888.3626 | H33: -441178.0239 | I33: -272467.6852 | J33: -103757.3465 | K33: 64952.99217 | L33: 233663.3309 | M33: 402373.6696 | N33: 571084.0083 | O33: -1325382.853 | P33: 3565360.413 | Q33: 3565360.413 | R33: 3565360.413 | S33: 3565360.413 | T33: 3565360.413 | U33: 3565360.413 | V33: 3565360.413 | W33: 3565360.413 | X33: 3565360.413 | Y33: 3565360.413 | Z33: 3565360.413 | AA33: 3565360.413
B34: Fluxo de caixa acumulado | C34: =C33 -> -9321347.346 | D34: =C34+D33 -> -7443090.32 | E34: -5564833.294 | F34: -6343431.995 | G34: -6953320.358 | H34: -7394498.382 | I34: -7666966.067 | J34: -7770723.414 | K34: -7705770.421 | L34: -7472107.09 | M34: -7069733.421 | N34: -6498649.413 | O34: -7824032.266 | P34: -4258671.853 | Q34: -693311.4395 | R34: 2872048.974 | S34: 6437409.387 | T34: 10002769.8 | U34: 13568130.21 | V34: 17133490.63 | W34: 20698851.04 | X34: 24264211.45 | Y34: 27829571.87 | Z34: 31394932.28 | AA34: 34960292.69
B35: Payback simples(contagem) | D35: =IF(D34<0,1,IF(C34>0,0,-C34/D33)) -> 1 | E35: 1 | F35: 1 | G35: 1 | H35: 1 | I35: 1 | J35: 1 | K35: 1 | L35: 1 | M35: 1 | N35: 1 | O35: 1 | P35: 1 | Q35: 1 | R35: 0.1944576029 | S35: 0 | T35: 0 | U35: 0 | V35: 0 | W35: 0 | X35: 0 | Y35: 0 | Z35: 0 | AA35: 0
B37: Indicadores do acionista
B38: TIR do acionista | C38: =IRR(C33:AA33) -> 0.1021793667
B39: VPL do acionista | C39: =NPV(C43,D33:AA33)+C33 -> 2770499.169
B40: Payback do acionista | C40: =SUM(D35:AA35) -> 14.1944576
B41: Índice de Cobertura do Serviço da Dívida (ICSD) | C41: =AVERAGE(D41:M41) -> 1.190781038 | D41: =-((D12+D13)+SUM(D14:D16))/SUM(D24,D25) -> 2.11330286 | E41: 2.11330286 | F41: 0.8207628846 | G41: 0.8539276591 | H41: 0.8898854882 | I41: 0.9290047188 | J41: 0.9717214455 | K41: 1.018555838 | L41: 1.070133426 | M41: 1.127213201 | N41: 1.190725214 | O41: 1.261821642
B43: TMA(CMPC) | C43: ='5. CMPC (WACC)'!G5 -> 0.0822892297

Sheet 10. DRE
B2: DRE | C2: ANO 1 | D2: ANO 2 | E2: ANO 3 | F2: ANO 4 | G2: ANO 5 | H2: ANO 6 | I2: ANO 7 | J2: ANO 8 | K2: ANO 9 | L2: ANO 10 | M2: ANO 11 | N2: ANO 12 | O2: ANO 13 | P2: ANO 14 | Q2: ANO 15 | R2: ANO 16 | S2: ANO 17 | T2: ANO 18 | U2: ANO 19 | V2: ANO 20 | W2: ANO 21 | X2: ANO 22 | Y2: ANO 23 | Z2: ANO 24 | AA2: ANO 25
B4: Receita Bruta | D4: =D5 -> 5048864.176 | E4: 5048864.176 | F4: 5048864.176 | G4: 5048864.176 | H4: 5048864.176 | I4: 5048864.176 | J4: 5048864.176 | K4: 5048864.176 | L4: 5048864.176 | M4: 5048864.176 | N4: 5048864.176 | O4: 5048864.176 | P4: 5048864.176 | Q4: 5048864.176 | R4: 5048864.176 | S4: 5048864.176 | T4: 5048864.176 | U4: 5048864.176 | V4: 5048864.176 | W4: 5048864.176 | X4: 5048864.176 | Y4: 5048864.176 | Z4: 5048864.176 | AA4: 5048864.176
B5: Receita da Contraprestação | D5: ='9. FLUXO DE CAIXA '!D5 -> 5048864.176 | E5: =D5 -> 5048864.176 | F5: 5048864.176 | G5: 5048864.176 | H5: 5048864.176 | I5: 5048864.176 | J5: 5048864.176 | K5: 5048864.176 | L5: 5048864.176 | M5: 5048864.176 | N5: 5048864.176 | O5: 5048864.176 | P5: 5048864.176 | Q5: 5048864.176 | R5: 5048864.176 | S5: 5048864.176 | T5: 5048864.176 | U5: 5048864.176 | V5: 5048864.176 | W5: 5048864.176 | X5: 5048864.176 | Y5: 5048864.176 | Z5: 5048864.176 | AA5: 5048864.176
B7: Tributos
B8: PIS (0,65%) | D8: =D5*-1*0.0065 -> -32817.61715 | E8: =D8 -> -32817.61715 | F8: -32817.61715 | G8: -32817.61715 | H8: -32817.61715 | I8: -32817.61715 | J8: -32817.61715 | K8: -32817.61715 | L8: -32817.61715 | M8: -32817.61715 | N8: -32817.61715 | O8: -32817.61715 | P8: -32817.61715 | Q8: -32817.61715 | R8: -32817.61715 | S8: -32817.61715 | T8: -32817.61715 | U8: -32817.61715 | V8: -32817.61715 | W8: -32817.61715 | X8: -32817.61715 | Y8: -32817.61715 | Z8: -32817.61715 | AA8: -32817.61715
B9: COFINS (3%) | D9: =-1*D5*0.03 -> -151465.9253 | E9: =D9 -> -151465.9253 | F9: -151465.9253 | G9: -151465.9253 | H9: -151465.9253 | I9: -151465.9253 | J9: -151465.9253 | K9: -151465.9253 | L9: -151465.9253 | M9: -151465.9253 | N9: -151465.9253 | O9: -151465.9253 | P9: -151465.9253 | Q9: -151465.9253 | R9: -151465.9253 | S9: -151465.9253 | T9: -151465.9253 | U9: -151465.9253 | V9: -151465.9253 | W9: -151465.9253 | X9: -151465.9253 | Y9: -151465.9253 | Z9: -151465.9253 | AA9: -151465.9253
B10: ISS (3%) | D10: =-1*D5*0.03 -> -151465.9253 | E10: =D10 -> -151465.9253 | F10: -151465.9253 | G10: -151465.9253 | H10: -151465.9253 | I10: -151465.9253 | J10: -151465.9253 | K10: -151465.9253 | L10: -151465.9253 | M10: -151465.9253 | N10: -151465.9253 | O10: -151465.9253 | P10: -151465.9253 | Q10: -151465.9253 | R10: -151465.9253 | S10: -151465.9253 | T10: -151465.9253 | U10: -151465.9253 | V10: -151465.9253 | W10: -151465.9253 | X10: -151465.9253 | Y10: -151465.9253 | Z10: -151465.9253 | AA10: -151465.9253
B12: Receita Líquida | D12: =D4+D7 -> 5048864.176 | E12: 5048864.176 | F12: 5048864.176 | G12: 5048864.176 | H12: 5048864.176 | I12: 5048864.176 | J12: 5048864.176 | K12: 5048864.176 | L12: 5048864.176 | M12: 5048864.176 | N12: 5048864.176 | O12: 5048864.176 | P12: 5048864.176 | Q12: 5048864.176 | R12: 5048864.176 | S12: 5048864.176 | T12: 5048864.176 | U12: 5048864.176 | V12: 5048864.176 | W12: 5048864.176 | X12: 5048864.176 | Y12: 5048864.176 | Z12: 5048864.176 | AA12: 5048864.176
B14: Custos Operacionais
B15: Custos de operação e manutenção (OPEX) | D15: =-1*'4. OPEX'!D10 -> -622437.873 | E15: =D15 -> -622437.873 | F15: -622437.873 | G15: -622437.873 | H15: -622437.873 | I15: -622437.873 | J15: -622437.873 | K15: -622437.873 | L15: -622437.873 | M15: -622437.873 | N15: -622437.873 | O15: -622437.873 | P15: -622437.873 | Q15: -622437.873 | R15: -622437.873 | S15: -622437.873 | T15: -622437.873 | U15: -622437.873 | V15: -622437.873 | W15: -622437.873 | X15: -622437.873 | Y15: -622437.873 | Z15: -622437.873 | AA15: -622437.873
B17: Lucro operacional | D17: =D12+D15 -> 4426426.303 | E17: 4426426.303 | F17: 4426426.303 | G17: 4426426.303 | H17: 4426426.303 | I17: 4426426.303 | J17: 4426426.303 | K17: 4426426.303 | L17: 4426426.303 | M17: 4426426.303 | N17: 4426426.303 | O17: 4426426.303 | P17: 4426426.303 | Q17: 4426426.303 | R17: 4426426.303 | S17: 4426426.303 | T17: 4426426.303 | U17: 4426426.303 | V17: 4426426.303 | W17: 4426426.303 | X17: 4426426.303 | Y17: 4426426.303 | Z17: 4426426.303 | AA17: 4426426.303
B19: Despesas Financeiras
B20: Juros | D20: ='9. FLUXO DE CAIXA '!D24 -> -1687103.387 | E20: ='9. FLUXO DE CAIXA '!E24 -> -1687103.387 | F20: ='9. FLUXO DE CAIXA '!F24 -> -1687103.387 | G20: ='9. FLUXO DE CAIXA '!G24 -> -1518393.048 | H20: ='9. FLUXO DE CAIXA '!H24 -> -1349682.71 | I20: ='9. FLUXO DE CAIXA '!I24 -> -1180972.371 | J20: ='9. FLUXO DE CAIXA '!J24 -> -1012262.032 | K20: ='9. FLUXO DE CAIXA '!K24 -> -843551.6935 | L20: ='9. FLUXO DE CAIXA '!L24 -> -674841.3548 | M20: ='9. FLUXO DE CAIXA '!M24 -> -506131.0161 | N20: ='9. FLUXO DE CAIXA '!N24 -> -337420.6774 | O20: ='9. FLUXO DE CAIXA '!O24 -> -168710.3387
B21: Amortização | F21: ='9. FLUXO DE CAIXA '!F25 -> -2656855.728 | G21: =F21 -> -2656855.728 | H21: -2656855.728 | I21: -2656855.728 | J21: -2656855.728 | K21: -2656855.728 | L21: -2656855.728 | M21: -2656855.728 | N21: -2656855.728 | O21: -2656855.728
B23: Lucros antes dos impostos | D23: =D17+D20+D21 -> 2739322.916 | E23: 2739322.916 | F23: 82467.18878 | G23: 251177.5275 | H23: 419887.8662 | I23: 588598.2049 | J23: 757308.5436 | K23: 926018.8823 | L23: 1094729.221 | M23: 1263439.56 | N23: 1432149.898 | O23: 1600860.237 | P23: 4426426.303 | Q23: 4426426.303 | R23: 4426426.303 | S23: 4426426.303 | T23: 4426426.303 | U23: 4426426.303 | V23: 4426426.303 | W23: 4426426.303 | X23: 4426426.303 | Y23: 4426426.303 | Z23: 4426426.303 | AA23: 4426426.303
B24: Imposto de Renda | D24: =-(D4*0.32)*0.15 -> -242345.4805 | E24: -242345.4805 | F24: -242345.4805 | G24: -242345.4805 | H24: -242345.4805 | I24: -242345.4805 | J24: -242345.4805 | K24: -242345.4805 | L24: -242345.4805 | M24: -242345.4805 | N24: -242345.4805 | O24: -242345.4805 | P24: -242345.4805 | Q24: -242345.4805 | R24: -242345.4805 | S24: -242345.4805 | T24: -242345.4805 | U24: -242345.4805 | V24: -242345.4805 | W24: -242345.4805 | X24: -242345.4805 | Y24: -242345.4805 | Z24: -242345.4805 | AA24: -242345.4805
B25: Imposto de Renda sobre excedente | D25: =-(0.32*D4-240000)*0.1 -> -137563.6536 | E25: -137563.6536 | F25: -137563.6536 | G25: -137563.6536 | H25: -137563.6536 | I25: -137563.6536 | J25: -137563.6536 | K25: -137563.6536 | L25: -137563.6536 | M25: -137563.6536 | N25: -137563.6536 | O25: -137563.6536 | P25: -137563.6536 | Q25: -137563.6536 | R25: -137563.6536 | S25: -137563.6536 | T25: -137563.6536 | U25: -137563.6536 | V25: -137563.6536 | W25: -137563.6536 | X25: -137563.6536 | Y25: -137563.6536 | Z25: -137563.6536 | AA25: -137563.6536
B26: Contribuição Social | D26: =-(0.32*D4)*0.09 -> -145407.2883 | E26: -145407.2883 | F26: -145407.2883 | G26: -145407.2883 | H26: -145407.2883 | I26: -145407.2883 | J26: -145407.2883 | K26: -145407.2883 | L26: -145407.2883 | M26: -145407.2883 | N26: -145407.2883 | O26: -145407.2883 | P26: -145407.2883 | Q26: -145407.2883 | R26: -145407.2883 | S26: -145407.2883 | T26: -145407.2883 | U26: -145407.2883 | V26: -145407.2883 | W26: -145407.2883 | X26: -145407.2883 | Y26: -145407.2883 | Z26: -145407.2883 | AA26: -145407.2883
B28: Lucro Líquido | D28: =D23+D24+D26 -> 2351570.148 | E28: 2351570.148 | F28: -305285.58 | G28: -136575.2413 | H28: 32135.09744 | I28: 200845.4361 | J28: 369555.7748 | K28: 538266.1135 | L28: 706976.4522 | M28: 875686.7909 | N28: 1044397.13 | O28: 1213107.468 | P28: 4038673.535 | Q28: 4038673.535 | R28: 4038673.535 | S28: 4038673.535 | T28: 4038673.535 | U28: 4038673.535 | V28: 4038673.535 | W28: 4038673.535 | X28: 4038673.535 | Y28: 4038673.535 | Z28: 4038673.535 | AA28: 4038673.535
B30: Dividendos
B32: Lucros Retidos | D32: =D28+D30 -> 2351570.148 | E32: 2351570.148 | F32: -305285.58 | G32: -136575.2413 | H32: 32135.09744 | I32: 200845.4361 | J32: 369555.7748 | K32: 538266.1135 | L32: 706976.4522 | M32: 875686.7909 | N32: 1044397.13 | O32: 1213107.468 | P32: 4038673.535 | Q32: 4038673.535 | R32: 4038673.535 | S32: 4038673.535 | T32: 4038673.535 | U32: 4038673.535 | V32: 4038673.535 | W32: 4038673.535 | X32: 4038673.535 | Y32: 4038673.535 | Z32: 4038673.535 | AA32: 4038673.535
